[Event "*** Monthly 3|2 Blitz Masters"]
[Site "Chess.com"]
[Date "2014.11.25"]
[Round "2"]
[White "GMHess"]
[Black "promen1999"]
[Result "1-0"]
[WhiteElo "2440"]
[BlackElo "2302"]
[TimeControl "180+2"]
[EndTime "11:18:02 PST"]
[Termination "GMHess won by resignation"]

1. b3 {[%clk 0:02:45.2]} 1... a5 {[%clk 0:02:56.5]} 2. Nf3 {[%clk 0:02:03.5]}
2... a4 {[%clk 0:02:56.7]} 3. Bb2 {[%clk 0:01:41.8]} 3... e6 {[%clk 0:02:57.4]}
4. c4 {[%clk 0:01:41.6]} 4... Nf6 {[%clk 0:02:57.1]} 5. bxa4 {[%clk 0:01:41]}
5... Be7 {[%clk 0:02:57.1]} 6. Nc3 {[%clk 0:01:42.1]} 6... O-O {[%clk 0:02:57]}
7. g3 {[%clk 0:01:43.4]} 7... b6 {[%clk 0:02:57.6]} 8. Bg2 {[%clk 0:01:42.8]}
8... Bb7 {[%clk 0:02:59.2]} 9. O-O {[%clk 0:01:43.7]} 9... d6 {[%clk 0:02:53.9]}
10. d4 {[%clk 0:01:38.1]} 10... Nbd7 {[%clk 0:02:55.1]} 11. d5 {[%clk
0:01:38.2]} 11... e5 {[%clk 0:02:55.5]} 12. Nh4 {[%clk 0:01:30.8]} 12... g6
{[%clk 0:02:53.6]} 13. e4 {[%clk 0:01:31.8]} 13... Nc5 {[%clk 0:02:54.4]} 14.
Ba3 {[%clk 0:01:29.9]} 14... Nfd7 {[%clk 0:02:52.1]} 15. Nf3 {[%clk 0:01:30.6]}
15... Ba6 {[%clk 0:02:44.7]} 16. Nd2 {[%clk 0:01:31.3]} 16... Bg5 {[%clk
0:02:38.6]} 17. f4 {[%clk 0:01:23.4]} 17... exf4 {[%clk 0:02:39.3]} 18. gxf4
{[%clk 0:01:25.3]} 18... Bf6 {[%clk 0:02:40.5]} 19. Qf3 {[%clk 0:01:21.5]} 19...
Bd4+ {[%clk 0:02:32.5]} 20. Kh1 {[%clk 0:01:21.8]} 20... Qf6 {[%clk 0:02:34]}
21. Rac1 {[%clk 0:01:17.5]} 21... Rae8 {[%clk 0:02:08.5]} 22. Nb5 {[%clk
0:01:15.6]} 22... Bxb5 {[%clk 0:02:09.2]} 23. axb5 {[%clk 0:01:16.4]} 23... Ra8
{[%clk 0:02:10.2]} 24. Rc2 {[%clk 0:01:04.6]} 24... Ra4 {[%clk 0:02:03.4]} 25.
Bxc5 {[%clk 0:00:49.4]} 25... Nxc5 {[%clk 0:02:01.4]} 26. Nb3 {[%clk 0:00:51.1]}
26... Rfa8 {[%clk 0:02:00.2]} 27. e5 {[%clk 0:00:41.1]} 27... dxe5 {[%clk
0:02:00.4]} 28. fxe5 {[%clk 0:00:42.7]} 28... Qxf3 {[%clk 0:02:00.8]} 29. Bxf3
{[%clk 0:00:43.8]} 29... Bxe5 {[%clk 0:01:57]} 30. Nxc5 {[%clk 0:00:43.7]} 30...
bxc5 {[%clk 0:01:57.8]} 31. d6 {[%clk 0:00:45.3]} 31... Rxa2 {[%clk 0:01:45.3]}
32. Rxa2 {[%clk 0:00:39.4]} 32... Rxa2 {[%clk 0:01:46.2]} 33. d7 {[%clk
0:00:39.3]} 33... Rd2 {[%clk 0:01:47.3]} 34. Bd5 {[%clk 0:00:40.4]} 34... Rxh2+
{[%clk 0:01:31.8]} 35. Kg1 {[%clk 0:00:40.9]} 1-0

[Event "*** Monthly 3|2 Blitz Masters"]
[Site "Chess.com"]
[Date "2014.11.25"]
[Round "2"]
[White "JamesColeman"]
[Black "DatsFunny"]
[Result "1-0"]
[WhiteElo "2283"]
[BlackElo "2091"]
[TimeControl "180+2"]
[EndTime "11:18:17 PST"]
[Termination "JamesColeman won by resignation"]

1. d4 {[%clk 0:03:00]} 1... Nf6 {[%clk 0:02:57.4]} 2. Nf3 {[%clk 0:03:00.5]}
2... c5 {[%clk 0:02:56.3]} 3. c3 {[%clk 0:03:01.7]} 3... d5 {[%clk 0:02:56.1]}
4. Bg5 {[%clk 0:03:02.1]} 4... Qb6 {[%clk 0:02:43.8]} 5. Qb3 {[%clk 0:02:59.1]}
5... c4 {[%clk 0:02:36.1]} 6. Qxb6 {[%clk 0:02:59.8]} 6... axb6 {[%clk 0:02:38]}
7. Nbd2 {[%clk 0:03:01.7]} 7... b5 {[%clk 0:02:36.2]} 8. Bxf6 {[%clk 0:03:00.8]}
8... gxf6 {[%clk 0:02:36.7]} 9. e4 {[%clk 0:03:02]} 9... e6 {[%clk 0:02:33.3]}
10. Be2 {[%clk 0:03:03.4]} 10... Nc6 {[%clk 0:02:32.7]} 11. O-O {[%clk
0:03:03.5]} 11... f5 {[%clk 0:02:30.7]} 12. exf5 {[%clk 0:03:02.7]} 12... exf5
{[%clk 0:02:31.2]} 13. Rfe1 {[%clk 0:03:03.6]} 13... Be6 {[%clk 0:02:30.8]} 14.
a3 {[%clk 0:03:04.9]} 14... Bd6 {[%clk 0:02:28.9]} 15. Nf1 {[%clk 0:03:04]}
15... f4 {[%clk 0:02:28.6]} 16. Ng5 {[%clk 0:03:03.4]} 16... Kd7 {[%clk
0:02:26]} 17. Bh5 {[%clk 0:03:04.8]} 17... Raf8 {[%clk 0:02:12.9]} 18. Nd2
{[%clk 0:03:05.5]} 18... h6 {[%clk 0:02:11.1]} 19. Nxe6 {[%clk 0:03:06.6]} 19...
fxe6 {[%clk 0:02:13]} 20. Nf3 {[%clk 0:03:06.9]} 20... Rf6 {[%clk 0:02:09.9]}
21. Re2 {[%clk 0:02:54.9]} 21... Rg8 {[%clk 0:02:04.4]} 22. Rae1 {[%clk
0:02:55.5]} 22... Rf5 {[%clk 0:02:00.4]} 23. Rxe6 {[%clk 0:02:49.8]} 23... Rxh5
{[%clk 0:01:46.4]} 24. Rf6 {[%clk 0:02:50.6]} 24... Be7 {[%clk 0:01:26.9]} 25.
Rxf4 {[%clk 0:02:47.9]} 25... Rf8 {[%clk 0:01:18.4]} 26. Rxf8 {[%clk 0:02:46.2]}
26... Bxf8 {[%clk 0:01:20.3]} 27. g4 {[%clk 0:02:46.6]} 27... Rg5 {[%clk
0:01:15.7]} 28. Nxg5 {[%clk 0:02:47.3]} 28... hxg5 {[%clk 0:01:17.6]} 29. Kg2
{[%clk 0:02:45.9]} 29... Bd6 {[%clk 0:01:18.5]} 30. Rh1 {[%clk 0:02:43.2]} 30...
Ne7 {[%clk 0:01:14.2]} 31. h4 {[%clk 0:02:43.8]} 31... gxh4 {[%clk 0:01:16.1]}
32. Rxh4 {[%clk 0:02:45.2]} 32... Ng6 {[%clk 0:01:17.9]} 33. Rh7+ {[%clk
0:02:45.8]} 33... Kc6 {[%clk 0:01:19.3]} 34. g5 {[%clk 0:02:06.3]} 34... Bf8
{[%clk 0:00:56.4]} 35. Kg3 {[%clk 0:02:02.4]} 35... b4 {[%clk 0:00:52.9]} 36.
axb4 {[%clk 0:02:03]} 36... Kd6 {[%clk 0:00:53.1]} 37. f4 {[%clk 0:02:04.1]}
37... Ke6 {[%clk 0:00:54]} 38. Rxb7 {[%clk 0:02:04.9]} 38... Bd6 {[%clk
0:00:53.8]} 39. Rb6 {[%clk 0:02:02.3]} 39... Ke7 {[%clk 0:00:52.1]} 40. Kg4
{[%clk 0:01:59.7]} 40... Nxf4 {[%clk 0:00:53.2]} 41. Rxd6 {[%clk 0:01:59.8]} 1-0

[Event "*** Monthly 3|2 Blitz Masters"]
[Site "Chess.com"]
[Date "2014.11.25"]
[Round "2"]
[White "IMLevAltounian"]
[Black "alexsuper1987"]
[Result "1-0"]
[WhiteElo "2229"]
[BlackElo "2035"]
[TimeControl "180+2"]
[EndTime "11:18:46 PST"]
[Termination "IMLevAltounian won by checkmate"]

1. Nf3 {[%clk 0:03:00]} 1... Nf6 {[%clk 0:02:37.8]} 2. c4 {[%clk 0:03:00.4]}
2... e6 {[%clk 0:02:37]} 3. g3 {[%clk 0:03:01.3]} 3... c5 {[%clk 0:02:37.7]} 4.
Bg2 {[%clk 0:03:02.5]} 4... Nc6 {[%clk 0:02:39.2]} 5. O-O {[%clk 0:03:03.4]}
5... Be7 {[%clk 0:02:40.7]} 6. d4 {[%clk 0:03:04]} 6... cxd4 {[%clk 0:02:40.4]}
7. Nxd4 {[%clk 0:03:05.9]} 7... O-O {[%clk 0:02:41.2]} 8. Nc3 {[%clk 0:03:06.7]}
8... d5 {[%clk 0:02:38.1]} 9. cxd5 {[%clk 0:03:05.9]} 9... exd5 {[%clk
0:02:37.9]} 10. b3 {[%clk 0:02:55.1]} 10... Re8 {[%clk 0:02:28.4]} 11. Bb2
{[%clk 0:02:55.4]} 11... Be6 {[%clk 0:02:18.7]} 12. Rc1 {[%clk 0:02:50.2]} 12...
Rc8 {[%clk 0:02:09.6]} 13. Nxc6 {[%clk 0:02:47.8]} 13... bxc6 {[%clk 0:02:04.2]}
14. Na4 {[%clk 0:02:49]} 14... c5 {[%clk 0:02:00.1]} 15. Bxf6 {[%clk 0:02:46.7]}
15... gxf6 {[%clk 0:01:54.1]} 16. e3 {[%clk 0:02:47.7]} 16... Qd7 {[%clk
0:01:24.2]} 17. Qh5 {[%clk 0:02:41.4]} 17... c4 {[%clk 0:01:08.5]} 18. h3 {[%clk
0:02:17.8]} 18... Ba3 {[%clk 0:01:07.3]} 19. Rcd1 {[%clk 0:02:16.2]} 19... c3
{[%clk 0:01:06]} 20. Nxc3 {[%clk 0:01:45.4]} 20... Rxc3 {[%clk 0:01:04.3]} 21.
Bxd5 {[%clk 0:01:47.1]} 21... Bxd5 {[%clk 0:00:54]} 22. Rxd5 {[%clk 0:01:48.6]}
22... Qe6 {[%clk 0:00:44.9]} 23. Rfd1 {[%clk 0:01:48.9]} 23... Rc1 {[%clk
0:00:41.9]} 24. Ra5 {[%clk 0:01:42]} 24... Rxd1+ {[%clk 0:00:38.7]} 25. Qxd1
{[%clk 0:01:43.9]} 25... Qe7 {[%clk 0:00:33.3]} 26. Qd4 {[%clk 0:01:42.1]} 26...
Bd6 {[%clk 0:00:29.5]} 27. Rxa7 {[%clk 0:01:39.5]} 27... Qe5 {[%clk 0:00:27.3]}
28. Qg4+ {[%clk 0:01:36.1]} 28... Qg5 {[%clk 0:00:24.8]} 29. Qd7 {[%clk
0:01:32.8]} 29... Bxg3 {[%clk 0:00:06.3]} 30. Qxf7+ {[%clk 0:01:29.5]} 30... Kh8
{[%clk 0:00:05.6]} 31. Qxh7# {[%clk 0:01:29.8]} 1-0

[Event "*** Monthly 3|2 Blitz Masters"]
[Site "Chess.com"]
[Date "2014.11.25"]
[Round "2"]
[White "VSERGUEI"]
[Black "FrankieJay"]
[Result "1-0"]
[WhiteElo "2260"]
[BlackElo "2171"]
[TimeControl "180+2"]
[EndTime "11:18:52 PST"]
[Termination "VSERGUEI won by resignation"]

1. d4 {[%clk 0:03:00]} 1... Nf6 {[%clk 0:02:58.6]} 2. c4 {[%clk 0:03:01.4]} 2...
g6 {[%clk 0:03:00.2]} 3. Nc3 {[%clk 0:03:02.8]} 3... Bg7 {[%clk 0:03:01.6]} 4.
e4 {[%clk 0:03:04.3]} 4... d6 {[%clk 0:03:03.2]} 5. Nf3 {[%clk 0:03:05.6]} 5...
O-O {[%clk 0:03:04.4]} 6. Be2 {[%clk 0:03:07.1]} 6... e5 {[%clk 0:03:06]} 7. Be3
{[%clk 0:03:07.2]} 7... Ng4 {[%clk 0:03:04]} 8. Bg5 {[%clk 0:03:07.6]} 8... f6
{[%clk 0:03:05.5]} 9. Bh4 {[%clk 0:03:08.9]} 9... g5 {[%clk 0:03:06.3]} 10. Bg3
{[%clk 0:03:09.8]} 10... Nh6 {[%clk 0:03:07.9]} 11. c5 {[%clk 0:03:10.8]} 11...
Nf7 {[%clk 0:02:58.3]} 12. cxd6 {[%clk 0:03:07.1]} 12... cxd6 {[%clk 0:02:54]}
13. O-O {[%clk 0:03:06.7]} 13... Nc6 {[%clk 0:02:50.1]} 14. dxe5 {[%clk
0:03:02.6]} 14... dxe5 {[%clk 0:02:47.2]} 15. Qxd8 {[%clk 0:03:01.8]} 15... Rxd8
{[%clk 0:02:47.9]} 16. Bc4 {[%clk 0:03:01.9]} 16... Kf8 {[%clk 0:02:37.2]} 17.
Rfd1 {[%clk 0:03:00.9]} 17... Bg4 {[%clk 0:02:35.8]} 18. Ne2 {[%clk 0:02:56.2]}
18... Bxf3 {[%clk 0:02:35.4]} 19. gxf3 {[%clk 0:02:56.6]} 19... Rxd1+ {[%clk
0:02:21.3]} 20. Rxd1 {[%clk 0:02:56.4]} 20... Rd8 {[%clk 0:02:23.2]} 21. Bd5
{[%clk 0:02:31.3]} 21... Nb4 {[%clk 0:02:03]} 22. Nc3 {[%clk 0:02:30.9]} 22...
Nxd5 {[%clk 0:01:22.5]} 23. Nxd5 {[%clk 0:02:29.7]} 23... Rc8 {[%clk 0:01:23]}
24. b4 {[%clk 0:02:27.3]} 24... Ke8 {[%clk 0:01:09.1]} 25. a4 {[%clk 0:02:27]}
25... Rc2 {[%clk 0:01:05.5]} 26. a5 {[%clk 0:02:25]} 26... Nd8 {[%clk
0:01:03.4]} 27. b5 {[%clk 0:02:08.3]} 27... Ne6 {[%clk 0:01:04.1]} 28. a6 {[%clk
0:02:06.5]} 28... bxa6 {[%clk 0:01:03.7]} 29. bxa6 {[%clk 0:02:06.9]} 29... Nd4
{[%clk 0:01:03.7]} 30. Rb1 {[%clk 0:02:04.5]} 30... Nxf3+ {[%clk 0:00:48.4]} 31.
Kg2 {[%clk 0:02:04.3]} 31... g4 {[%clk 0:00:49.8]} 32. h3 {[%clk 0:01:56.9]}
32... h5 {[%clk 0:00:48.3]} 33. hxg4 {[%clk 0:01:57.8]} 33... hxg4 {[%clk
0:00:49.2]} 34. Rb7 {[%clk 0:01:53.3]} 34... Rc1 {[%clk 0:00:43.8]} 35. Bh2
{[%clk 0:01:54.1]} 35... Kf8 {[%clk 0:00:32.2]} 36. Rxa7 {[%clk 0:01:51.7]}
36... Bh6 {[%clk 0:00:33.5]} 37. Rc7 {[%clk 0:01:47]} 37... Ne1+ {[%clk
0:00:23]} 38. Kg3 {[%clk 0:01:46.5]} 38... Bf4+ {[%clk 0:00:24]} 39. Kxg4 {[%clk
0:01:46.5]} 1-0

[Event "*** Monthly 3|2 Blitz Masters"]
[Site "Chess.com"]
[Date "2014.11.25"]
[Round "2"]
[White "Baggio95"]
[Black "Nouki"]
[Result "0-1"]
[WhiteElo "2366"]
[BlackElo "2650"]
[TimeControl "180+2"]
[EndTime "11:19:24 PST"]
[Termination "Nouki won by resignation"]

1. e4 {[%clk 0:02:55.1]} 1... Nf6 {[%clk 0:02:55.1]} 2. e5 {[%clk 0:02:55.8]}
2... Nd5 {[%clk 0:02:55.3]} 3. d4 {[%clk 0:02:57.4]} 3... d6 {[%clk 0:02:56.2]}
4. c4 {[%clk 0:02:58.6]} 4... Nb6 {[%clk 0:02:57.4]} 5. exd6 {[%clk 0:03:00.2]}
5... cxd6 {[%clk 0:02:59.3]} 6. Nc3 {[%clk 0:03:01.8]} 6... g6 {[%clk
0:03:00.8]} 7. Be3 {[%clk 0:03:02.2]} 7... Bg7 {[%clk 0:03:02.4]} 8. Rc1 {[%clk
0:03:03.8]} 8... O-O {[%clk 0:03:03.5]} 9. b3 {[%clk 0:03:03.7]} 9... a5 {[%clk
0:03:05.1]} 10. Nf3 {[%clk 0:03:03]} 10... Bg4 {[%clk 0:02:54.3]} 11. Be2 {[%clk
0:03:03]} 11... d5 {[%clk 0:02:36.4]} 12. c5 {[%clk 0:02:54.2]} 12... Nc8 {[%clk
0:02:32.3]} 13. O-O {[%clk 0:02:48]} 13... Nc6 {[%clk 0:02:31.4]} 14. Na4 {[%clk
0:02:31.3]} 14... e6 {[%clk 0:02:26.3]} 15. Qd2 {[%clk 0:02:25]} 15... N8e7
{[%clk 0:02:22]} 16. Nb6 {[%clk 0:02:01.6]} 16... Ra7 {[%clk 0:02:22.7]} 17. Bg5
{[%clk 0:01:56.4]} 17... Bxf3 {[%clk 0:02:21.2]} 18. Bxf3 {[%clk 0:01:57]} 18...
Nxd4 {[%clk 0:02:17.8]} 19. Bd1 {[%clk 0:01:53.1]} 19... Ndc6 {[%clk 0:02:02.4]}
20. Re1 {[%clk 0:01:49.2]} 20... f6 {[%clk 0:01:40.7]} 21. Bh4 {[%clk
0:01:42.9]} 21... e5 {[%clk 0:01:28.7]} 22. Be2 {[%clk 0:01:33.9]} 22... d4
{[%clk 0:01:20]} 23. Bc4+ {[%clk 0:01:33.7]} 23... Kh8 {[%clk 0:01:21]} 24. f3
{[%clk 0:01:30.4]} 24... Nf5 {[%clk 0:01:20.2]} 25. Bg3 {[%clk 0:01:23]} 25...
h5 {[%clk 0:01:15.4]} 26. Rcd1 {[%clk 0:01:20.8]} 26... Ne3 {[%clk 0:01:06]} 27.
Rb1 {[%clk 0:01:15.5]} 27... Bh6 {[%clk 0:01:06.1]} 28. Qe2 {[%clk 0:01:10.4]}
28... Qe7 {[%clk 0:01:05.7]} 29. Nd5 {[%clk 0:00:59.6]} 29... Qxc5 {[%clk
0:00:58]} 30. f4 {[%clk 0:00:59.4]} 30... Nxd5 {[%clk 0:00:57.6]} 31. Qe4 {[%clk
0:00:54.2]} 31... Nde7 {[%clk 0:00:41.3]} 32. fxe5 {[%clk 0:00:54.6]} 32... fxe5
{[%clk 0:00:40.2]} 33. Bxe5+ {[%clk 0:00:51.1]} 33... Qxe5 {[%clk 0:00:39.8]}
34. Qxe5+ {[%clk 0:00:52.2]} 34... Nxe5 {[%clk 0:00:40.7]} 35. Rxe5 {[%clk
0:00:53.8]} 35... Be3+ {[%clk 0:00:40.6]} 36. Kh1 {[%clk 0:00:54.5]} 36... Nc6
{[%clk 0:00:41.7]} 37. Re6 {[%clk 0:00:55.2]} 37... Kg7 {[%clk 0:00:43.1]} 38.
Bd3 {[%clk 0:00:53.5]} 38... Rf6 {[%clk 0:00:43.4]} 39. Re8 {[%clk 0:00:53.7]}
39... b6 {[%clk 0:00:41.1]} 0-1

[Event "*** Monthly 3|2 Blitz Masters"]
[Site "Chess.com"]
[Date "2014.11.25"]
[Round "2"]
[White "WanderingPuppet"]
[Black "minnesotachessmaster"]
[Result "1-0"]
[WhiteElo "2022"]
[BlackElo "1907"]
[TimeControl "180+2"]
[EndTime "11:19:43 PST"]
[Termination "WanderingPuppet won by resignation"]

1. Nc3 {[%clk 0:03:00]} 1... e5 {[%clk 0:02:58.3]} 2. d4 {[%clk 0:03:00.3]} 2...
exd4 {[%clk 0:02:58.6]} 3. Qxd4 {[%clk 0:03:02.2]} 3... Nc6 {[%clk 0:02:59.5]}
4. Qe3+ {[%clk 0:03:03.5]} 4... Be7 {[%clk 0:02:59.2]} 5. Nd5 {[%clk 0:03:04.9]}
5... d6 {[%clk 0:02:58.6]} 6. Nf3 {[%clk 0:03:05.7]} 6... Be6 {[%clk 0:02:59.3]}
7. Nxe7 {[%clk 0:03:06.8]} 7... Qxe7 {[%clk 0:02:56.2]} 8. Bd2 {[%clk 0:03:07]}
8... Nf6 {[%clk 0:02:55.3]} 9. h3 {[%clk 0:02:55.6]} 9... O-O {[%clk 0:02:52.8]}
10. O-O-O {[%clk 0:02:51.6]} 10... Rfe8 {[%clk 0:02:20.9]} 11. Qa3 {[%clk
0:02:33.3]} 11... b5 {[%clk 0:02:00.8]} 12. e3 {[%clk 0:02:31.9]} 12... Reb8
{[%clk 0:01:37.5]} 13. Nd4 {[%clk 0:02:24.4]} 13... Nxd4 {[%clk 0:01:22]} 14.
exd4 {[%clk 0:02:26.3]} 14... c5 {[%clk 0:01:18.8]} 15. Be3 {[%clk 0:02:02.7]}
15... b4 {[%clk 0:01:17.2]} 16. Qa5 {[%clk 0:02:01.6]} 16... c4 {[%clk
0:00:51.4]} 17. Be2 {[%clk 0:01:34.9]} 17... b3 {[%clk 0:00:49.7]} 18. c3 {[%clk
0:01:27.3]} 18... bxa2 {[%clk 0:00:45.2]} 19. Qxa2 {[%clk 0:01:29.2]} 19... d5
{[%clk 0:00:43]} 20. Bg5 {[%clk 0:01:20.5]} 20... h6 {[%clk 0:00:42.1]} 21. Bh4
{[%clk 0:01:21.5]} 21... Rb7 {[%clk 0:00:41.7]} 22. Bf3 {[%clk 0:01:12.8]} 22...
Rab8 {[%clk 0:00:41.4]} 23. Rd2 {[%clk 0:01:14.2]} 23... Bf5 {[%clk 0:00:40.5]}
24. Re2 {[%clk 0:01:11.1]} 24... Qd6 {[%clk 0:00:40.5]} 25. Bg3 {[%clk
0:01:11.4]} 25... Qb6 {[%clk 0:00:38.4]} 26. Bxb8 {[%clk 0:01:12.2]} 26... Rxb8
{[%clk 0:00:39.9]} 27. Rhe1 {[%clk 0:01:13.1]} 27... Ne4 {[%clk 0:00:40.2]} 28.
Bxe4 {[%clk 0:01:13.3]} 28... Bxe4 {[%clk 0:00:41]} 29. f3 {[%clk 0:01:14.7]}
29... Bd3 {[%clk 0:00:41.2]} 30. Re8+ {[%clk 0:01:15.7]} 30... Rxe8 {[%clk
0:00:42.5]} 31. Rxe8+ {[%clk 0:01:17.2]} 31... Kh7 {[%clk 0:00:43.9]} 32. Re7
{[%clk 0:01:12.1]} 32... Qf6 {[%clk 0:00:43.3]} 33. Qxa7 {[%clk 0:00:58.7]}
33... Qg5+ {[%clk 0:00:41]} 34. Kd1 {[%clk 0:00:50]} 34... Qxg2 {[%clk
0:00:41.3]} 35. Qc7 {[%clk 0:00:27.2]} 35... Qf1+ {[%clk 0:00:32]} 36. Kd2
{[%clk 0:00:25.5]} 36... Qf2+ {[%clk 0:00:32.9]} 37. Kd1 {[%clk 0:00:26.2]}
37... Qxf3+ {[%clk 0:00:33.7]} 38. Kd2 {[%clk 0:00:26.9]} 38... Qf4+ {[%clk
0:00:31.3]} 39. Qxf4 {[%clk 0:00:27]} 1-0

[Event "*** Monthly 3|2 Blitz Masters"]
[Site "Chess.com"]
[Date "2014.11.25"]
[Round "2"]
[White "Byniolus"]
[Black "jlandaw"]
[Result "1-0"]
[WhiteElo "2342"]
[BlackElo "2266"]
[TimeControl "180+2"]
[EndTime "11:19:46 PST"]
[Termination "Byniolus won by resignation"]

1. d4 {[%clk 0:03:00]} 1... Nf6 {[%clk 0:02:54.5]} 2. Nf3 {[%clk 0:03:01]} 2...
e6 {[%clk 0:02:55.5]} 3. Bf4 {[%clk 0:03:02.1]} 3... b6 {[%clk 0:02:55.4]} 4. e3
{[%clk 0:03:03.2]} 4... Bb7 {[%clk 0:02:55.5]} 5. h3 {[%clk 0:03:04.5]} 5... g6
{[%clk 0:02:52.8]} 6. Be2 {[%clk 0:03:04.5]} 6... Bg7 {[%clk 0:02:53.9]} 7. O-O
{[%clk 0:03:06.1]} 7... O-O {[%clk 0:02:55]} 8. c4 {[%clk 0:03:04.4]} 8... d6
{[%clk 0:02:56]} 9. Nc3 {[%clk 0:03:05]} 9... Ne4 {[%clk 0:02:55.1]} 10. Nxe4
{[%clk 0:03:04.5]} 10... Bxe4 {[%clk 0:02:57]} 11. Bg3 {[%clk 0:03:04.9]} 11...
Nd7 {[%clk 0:02:54.5]} 12. Rc1 {[%clk 0:03:04.8]} 12... Qe7 {[%clk 0:02:32.4]}
13. Nd2 {[%clk 0:03:04.5]} 13... Bb7 {[%clk 0:02:31.6]} 14. Bf3 {[%clk
0:03:06.1]} 14... Bxf3 {[%clk 0:02:32.4]} 15. Qxf3 {[%clk 0:03:08]} 15... e5
{[%clk 0:02:27.9]} 16. Qc6 {[%clk 0:03:03.3]} 16... Rac8 {[%clk 0:02:18.4]} 17.
Nf3 {[%clk 0:02:59.7]} 17... e4 {[%clk 0:02:05.4]} 18. Nd2 {[%clk 0:03:00]}
18... f5 {[%clk 0:02:06.4]} 19. b4 {[%clk 0:03:00.5]} 19... g5 {[%clk
0:02:04.7]} 20. Bh2 {[%clk 0:03:00.8]} 20... h5 {[%clk 0:01:27.4]} 21. Rfd1
{[%clk 0:02:59.2]} 21... h4 {[%clk 0:01:27.4]} 22. a4 {[%clk 0:02:49]} 22...
Rfe8 {[%clk 0:00:53.5]} 23. Qd5+ {[%clk 0:02:30.6]} 23... Qf7 {[%clk 0:00:54.5]}
24. Qxf7+ {[%clk 0:02:28.3]} 24... Kxf7 {[%clk 0:00:56.4]} 25. Nb3 {[%clk
0:02:23.7]} 25... Re7 {[%clk 0:00:46.8]} 26. Kf1 {[%clk 0:02:22]} 26... Nf6
{[%clk 0:00:44.9]} 27. Ke2 {[%clk 0:02:22.1]} 27... Nh5 {[%clk 0:00:45.6]} 28.
c5 {[%clk 0:02:17]} 28... dxc5 {[%clk 0:00:41.5]} 29. dxc5 {[%clk 0:02:17.1]}
29... f4 {[%clk 0:00:40.2]} 30. Nd4 {[%clk 0:02:13.4]} 30... Rd8 {[%clk
0:00:35.2]} 31. Nc6 {[%clk 0:02:04.7]} 31... Rxd1 {[%clk 0:00:28.6]} 32. Rxd1
{[%clk 0:02:06.6]} 32... Re8 {[%clk 0:00:25.5]} 33. Rd7+ {[%clk 0:02:06.8]}
33... Kf8 {[%clk 0:00:25.3]} 34. Rxc7 {[%clk 0:02:04.1]} 34... bxc5 {[%clk
0:00:25.9]} 35. bxc5 {[%clk 0:02:06]} 35... Re6 {[%clk 0:00:17.4]} 36. Rc8+
{[%clk 0:01:59.3]} 36... Re8 {[%clk 0:00:18.7]} 37. Nxa7 {[%clk 0:01:59.9]}
37... Bc3 {[%clk 0:00:13.6]} 38. c6 {[%clk 0:01:50.8]} 38... Rxc8 {[%clk
0:00:14.5]} 39. Nxc8 {[%clk 0:01:52.2]} 39... Ke8 {[%clk 0:00:16.1]} 40. Nd6+
{[%clk 0:01:50.1]} 40... Kd8 {[%clk 0:00:16.9]} 41. Nxe4 {[%clk 0:01:51.3]}
41... Be5 {[%clk 0:00:16.3]} 42. Kf3 {[%clk 0:01:24.2]} 42... Kc7 {[%clk
0:00:12.4]} 43. Nxg5 {[%clk 0:01:12.9]} 43... Kxc6 {[%clk 0:00:11.1]} 44. Bxf4
{[%clk 0:01:08.5]} 1-0

[Event "*** Monthly 3|2 Blitz Masters"]
[Site "Chess.com"]
[Date "2014.11.25"]
[Round "2"]
[White "Vandros57"]
[Black "Quinten94"]
[Result "0-1"]
[WhiteElo "1802"]
[BlackElo "2022"]
[TimeControl "180+2"]
[EndTime "11:20:04 PST"]
[Termination "Quinten94 won by resignation"]

1. d4 {[%clk 0:02:56.9]} 1... d5 {[%clk 0:02:55.1]} 2. c4 {[%clk 0:02:56.3]}
2... c6 {[%clk 0:02:56.5]} 3. Nf3 {[%clk 0:02:55.1]} 3... Nf6 {[%clk 0:02:57.5]}
4. e3 {[%clk 0:02:54.7]} 4... Bf5 {[%clk 0:02:57.8]} 5. Bd3 {[%clk 0:02:54.2]}
5... Bg6 {[%clk 0:02:57.4]} 6. O-O {[%clk 0:02:53.9]} 6... e6 {[%clk 0:02:58.1]}
7. Nc3 {[%clk 0:02:48.1]} 7... Bd6 {[%clk 0:02:58.1]} 8. Qe2 {[%clk 0:02:45.7]}
8... Ne4 {[%clk 0:02:52.9]} 9. Bxe4 {[%clk 0:02:40.9]} 9... dxe4 {[%clk
0:02:53.9]} 10. Nd2 {[%clk 0:02:40.2]} 10... f5 {[%clk 0:02:39.7]} 11. f3 {[%clk
0:02:36.1]} 11... exf3 {[%clk 0:02:37.3]} 12. Nxf3 {[%clk 0:02:28.8]} 12... Nd7
{[%clk 0:02:13.4]} 13. e4 {[%clk 0:02:28.6]} 13... O-O {[%clk 0:02:15]} 14. e5
{[%clk 0:02:27.6]} 14... Be7 {[%clk 0:02:15.8]} 15. Bf4 {[%clk 0:02:19.6]} 15...
Bh5 {[%clk 0:02:07.9]} 16. Qd2 {[%clk 0:02:19.3]} 16... Nb6 {[%clk 0:02:05.4]}
17. b3 {[%clk 0:02:17]} 17... a5 {[%clk 0:02:06.9]} 18. a4 {[%clk 0:02:15.8]}
18... Bb4 {[%clk 0:02:07.5]} 19. Qe3 {[%clk 0:02:11.9]} 19... h6 {[%clk
0:02:02.1]} 20. h3 {[%clk 0:02:10.2]} 20... Qe7 {[%clk 0:01:59.3]} 21. Rad1
{[%clk 0:02:08.3]} 21... Rad8 {[%clk 0:01:59.4]} 22. Kh1 {[%clk 0:02:07]} 22...
g5 {[%clk 0:01:53.4]} 23. Nxg5 {[%clk 0:01:55.2]} 23... Bxc3 {[%clk 0:01:41.5]}
24. Nxe6 {[%clk 0:01:33.7]} 24... Qxe6 {[%clk 0:01:37.9]} 25. Rd3 {[%clk
0:01:22]} 25... Bb4 {[%clk 0:01:38.6]} 26. Bxh6 {[%clk 0:01:21.6]} 26... f4
{[%clk 0:01:28.4]} 27. Bxf4 {[%clk 0:01:06.6]} 27... Bg6 {[%clk 0:01:26.6]} 28.
Rdd1 {[%clk 0:01:05.7]} 28... Rd7 {[%clk 0:01:19.5]} 29. Qg3 {[%clk 0:01:03]}
29... Rdf7 {[%clk 0:01:13.7]} 30. Rf3 {[%clk 0:00:56.7]} 30... Be7 {[%clk
0:01:06.3]} 31. Rdf1 {[%clk 0:00:55.6]} 31... Kh7 {[%clk 0:01:01.3]} 32. Bg5
{[%clk 0:00:52.1]} 32... Bxg5 {[%clk 0:00:58.4]} 33. Rxf7+ {[%clk 0:00:47.8]}
33... Rxf7 {[%clk 0:00:58.8]} 34. Rxf7+ {[%clk 0:00:48]} 34... Qxf7 {[%clk
0:00:57.5]} 35. Qxg5 {[%clk 0:00:48.9]} 35... Nd7 {[%clk 0:00:44.6]} 36. Qh4+
{[%clk 0:00:40.8]} 36... Kg7 {[%clk 0:00:45.5]} 37. Qg3 {[%clk 0:00:34]} 37...
Nf8 {[%clk 0:00:43.5]} 38. h4 {[%clk 0:00:27.1]} 38... Qf5 {[%clk 0:00:44.3]}
39. d5 {[%clk 0:00:21.8]} 39... Qd3 {[%clk 0:00:36.2]} 40. e6 {[%clk 0:00:19.2]}
40... Qxg3 {[%clk 0:00:36.6]} 0-1